[Event "GER-ch Youth-U12 2024"]
[Site "Willingen"]
[Date "2024.05.19"]
[Round "2"]
[White "Zhang, Yibo"]
[Black "Jahn, Gustav"]
[Result "1-0"]
[ECO "B13"]
[WhiteElo "1988"]
[BlackElo "1755"]
[Annotator "NA RC"]
[PlyCount "131"]
[EventDate "2022.06.05"]
[EventType "swiss"]
[EventRounds "9"]
[EventCountry "GER"]
[SourceTitle "playchess.com"]
[Source "ChessBase"]
[SourceQuality "1"]
[TimeControl "40/4500+30:900+30"]

1. e4 {[%emt 0:00:00]} c6 {[%emt 0:00:00]} 2. d4 {[%emt 0:00:00]} d5 {[%emt 0:00:00]} 3. exd5 {[%emt 0:00:00]} cxd5 {[%emt 0:00:00]} 4. Bd3 {[%emt 0:00:00]} Nc6 {[%emt 0:00:00]} 5. c3 {[%emt 0:00:00]} Qc7 {[%emt 0:00:00]} 6. h3 {[%emt 0:00:00]} g6 {[%emt 0:00:00]} 7. Nf3 {[%emt 0:00:00]} Bf5 {[%emt 0:00:00]} 8. Be2 {[%emt 0:00:00]} Nf6 {[%emt 0:00:00]} 9. O-O {[%emt 0:00:00]} Bg7 {[%emt 0:00:00]} 10. Re1 {[%emt 0:00:00]} O-O {[%emt 0:00:00]} 11. Bf1 {[%emt 0:00:00]} Rab8 {[%emt 0:00:00]} 12. a4 {[%emt 0:00:00]} Ne4 {[%emt 0:00:00]} 13. Nbd2 {[%emt 0:00:00]} a6 {[%emt 0:00:00]} 14. Nxe4 {[%emt 0:00:00]} Bxe4 {[%emt 0:00:00]} 15. Nd2 {[%emt 0:00:00]} Bf5 {[%emt 0:00:00]} 16. Nb3 {[%emt 0:00:00]} Rfd8 {[%emt 0:00:00]} 17. Qf3 {[%emt 0:09:57]} e5 {[%emt 0:00:00]} 18. dxe5 {[%emt 0:00:28]} Nxe5 {[%emt 0:00:28]} 19. Qg3 {[%emt 0:00:13]} f6 {[%emt 0:11:49]} 20. Be3 {[%emt 0:09:29]} Bf8 {[%emt 0:01:40]} 21. a5 {[%emt 0:02:30]} Qd7 {[%emt 0:01:32]} 22. Bb6 {[%emt 0:08:32]} Re8 {[%emt 0:01:26]} 23. Nd4 {[%emt 0:01:27]} Bd6 {[%emt 0:02:09]} 24. Nxf5 {[%emt 0:08:11]} Qxf5 {[%emt 0:00:27]} 25. Qe3 {[%emt 0:02:03]} Re7 {[%emt 0:07:33]} 26. Qd2 {[%emt 0:03:00]} Nf7 {[%emt 0:09:52]} 27. Rxe7 {[%emt 0:01:44]} Bxe7 {[%emt 0:00:16]} 28. Rd1 {[%emt 0:00:54]} Bd8 {[%emt 0:04:07]} 29. Qxd5 {[%emt 0:01:20]} Qxd5 {[%emt 0:00:46]} 30. Rxd5 {[%emt 0:00:01]} Bxb6 {[%emt 0:00:34]} 31. axb6 {[%emt 0:00:05]} Kf8 {[%emt 0:01:46]} 32. Rd7 {[%emt 0:02:03]} h6 {[%emt 0:02:53]} 33. f4 {[%emt 0:00:30]} Ke8 {[%emt 0:01:35]} 34. Rc7 {[%emt 0:00:13]} g5 {[%emt 0:01:34]} 35. Be2 {[%emt 0:00:43]} Kf8 {[%emt 0:04:47]} 36. fxg5 {[%emt 0:02:07]} hxg5 {[%emt 0:00:44]} 37. Bf3 {[%emt 0:00:56]} Nd6 {[%emt 0:00:41]} 38. Rd7 {[%emt 0:00:24]} Nc4 {[%emt 0:01:51]} 39. Rxb7 {[%emt 0:01:19]} Rxb7 {[%emt 0:00:23]} 40. Bxb7 {[%emt 0:00:04]} Nxb6 {[%emt 0:00:11]} 41. Bxa6 {[%emt 0:16:46]} Na4 {[%emt 0:15:48]} 42. c4 {[%emt 0:00:03]} Nxb2 {[%emt 0:00:17]} 43. c5 {[%emt 0:00:04]} Ke7 {[%emt 0:01:00]} 44. Kf2 {[%emt 0:00:20]} Na4 {[%emt 0:00:57]} 45. c6 {[%emt 0:00:06]} Kd6 {[%emt 0:00:47]} 46. Bb5 {[%emt 0:00:10]} Nc3 {[%emt 0:00:22]} 47. Bc4 {[%emt 0:00:47]} Kxc6 {[%emt 0:00:09]} 48. Ke3 {[%emt 0:00:43]} Kd6 {[%emt 0:01:44]} 49. Kd3 {[%emt 0:00:51]} Nd5 {[%emt 0:01:07]} 50. Ke4 {[%emt 0:03:33]} Nf4 {[%emt 0:00:32]} 51. Bf1 {[%emt 0:02:21]} Nh5 {[%emt 0:01:48]} 52. Kf5 {[%emt 0:02:24]} Ke7 {[%emt 0:01:31]} 53. Kg4 {[%emt 0:00:24]} Nf4 {[%emt 0:00:25]} 54. g3 {[%emt 0:00:15]} Kf7 {[%emt 0:01:19]} 55. h4 {[%emt 0:03:18]} Kg6 {[%emt 0:01:11]} 56. gxf4 {[%emt 0:01:09]} gxf4 {[%emt 0:00:17]} 57. h5+ {[%emt 0:00:17]} Kh6 {[%emt 0:00:15]} 58. Be2 {[%emt 0:00:08]} f5+ {[%emt 0:00:06]} 59. Kxf5 {[%emt 0:00:20]} f3 {[%emt 0:00:15]} 60. Bxf3 {[%emt 0:00:05]} Kh7 {[%emt 0:00:06]} 61. Kf6 {[%emt 0:00:25]} Kh8 {[%emt 0:00:24]} 62. Kf7 {[%emt 0:00:08]} Kh7 {[%emt 0:00:07]} 63. Bd5 {[%emt 0:00:13]} Kh6 {[%emt 0:00:23]} 64. Bf3 {[%emt 0:00:09]} Kh7 {[%emt 0:00:09]} 65. Be4+ {[%emt 0:00:25]} Kh6 {[%emt 0:00:13]} 66. Bg6 {[%emt 0:00:06]} 1-0

[Event "GER-ch Youth-U12 2024"]
[Site "Willingen"]
[Date "2024.05.19"]
[Round "2"]
[White "Bundan, Edward"]
[Black "Hellriegel, Hannes"]
[Result "1-0"]
[ECO "C70"]
[WhiteElo "1897"]
[BlackElo "1701"]
[Annotator "NA"]
[PlyCount "75"]
[EventDate "2022.06.05"]
[EventType "swiss"]
[EventRounds "9"]
[EventCountry "GER"]
[SourceTitle "playchess.com"]
[Source "ChessBase"]
[SourceQuality "1"]
[TimeControl "40/4500+30:900+30"]

1. e4 {[%emt 0:00:00]} e5 {[%emt 0:00:00]} 2. Nf3 {[%emt 0:00:00]} Nc6 {[%emt 0:00:00]} 3. Bb5 {[%emt 0:00:00]} a6 {[%emt 0:00:00]} 4. Ba4 {[%emt 0:00:00]} b5 {[%emt 0:00:00]} 5. Bb3 {[%emt 0:00:00]} Na5 {[%emt 0:00:00]} 6. d3 {[%emt 0:00:00]} d6 {[%emt 0:00:00]} 7. O-O {[%emt 0:00:00]} Bb7 {[%emt 0:00:00]} 8. c3 {[%emt 0:00:00]} Nxb3 {[%emt 0:00:00]} 9. Qxb3 {[%emt 0:00:00]} Nf6 {[%emt 0:00:00]} 10. Re1 {[%emt 0:00:00]} Be7 {[%emt 0:00:00]} 11. Nbd2 {[%emt 0:00:00]} c5 {[%emt 0:07:07]} 12. a4 {[%emt 0:01:11]} Bc6 {[%emt 0:07:12]} 13. axb5 {[%emt 0:01:53]} axb5 {[%emt 0:01:05]} 14. Ra3 {[%emt 0:01:15]} O-O {[%emt 0:06:19]} 15. d4 {[%emt 0:06:32]} c4 {[%emt 0:03:51]} 16. Qc2 {[%emt 0:01:40]} Qc7 {[%emt 0:10:13]} 17. d5 {[%emt 0:01:12]} Bd7 {[%emt 0:01:18]} 18. Nf1 {[%emt 0:03:59]} Rxa3 {[%emt 0:07:28]} 19. bxa3 {[%emt 0:00:10]} Nh5 {[%emt 0:04:58]} 20. Ng3 {[%emt 0:03:24]} Nxg3 {[%emt 0:01:51]} 21. hxg3 {[%emt 0:00:14]} f5 {[%emt 0:01:08]} 22. Nd2 {[%emt 0:08:43]} Qc5 {[%emt 0:04:27]} 23. Rd1 {[%emt 0:01:03]} Bg5 {[%emt 0:02:54]} 24. Qb2 {[%emt 0:16:28]} f4 {[%emt 0:08:48]} 25. gxf4 {[%emt 0:00:40]} Bxf4 {[%emt 0:01:35]} 26. Nf1 {[%emt 0:01:46]} Bg4 {[%emt 0:03:36]} 27. Re1 {[%emt 0:01:08]} h5 {[%emt 0:02:37]} 28. Be3 {[%emt 0:01:39]} Bxe3 {[%emt 0:01:02]} 29. Nxe3 {[%emt 0:00:17]} Bd7 {[%emt 0:01:48]} 30. Kf1 {[%emt 0:07:39]} h4 {[%emt 0:03:09]} 31. Ke2 {[%emt 0:01:36]} Rf4 {[%emt 0:02:06]} 32. f3 {[%emt 0:00:27]} g5 {[%emt 0:02:20]} 33. Qb4 {[%emt 0:02:38]} Qxb4 {[%emt 0:02:23]} 34. axb4 {[%emt 0:01:18]} Rf8 {[%emt 0:01:25]} 35. Ra1 {[%emt 0:00:37]} Rd8 {[%emt 0:01:14]} 36. Ra6 {[%emt 0:01:22]} Be8 {[%emt 0:00:44]} 37. Nf5 {[%emt 0:00:18]} Kf8 {[%emt 0:00:44]} 38. Nxd6 {[%emt 0:00:26]} 1-0

[Event "GER-ch Youth-U12 2024"]
[Site "Willingen"]
[Date "2024.05.19"]
[Round "2"]
[White "Marynychenko, Yehor"]
[Black "Stehning, Toni"]
[Result "1-0"]
[ECO "C29"]
[WhiteElo "1896"]
[BlackElo "1821"]
[Annotator "NA RC"]
[PlyCount "69"]
[EventDate "2022.06.05"]
[EventType "swiss"]
[EventRounds "9"]
[EventCountry "GER"]
[SourceTitle "playchess.com"]
[Source "ChessBase"]
[SourceQuality "1"]
[TimeControl "40/4500+30:900+30"]

1. e4 {[%emt 0:00:00]} e5 {[%emt 0:00:00]} 2. Nc3 {[%emt 0:00:00]} Nf6 {[%emt 0:00:00]} 3. f4 {[%emt 0:00:00]} d5 {[%emt 0:00:00]} 4. fxe5 {[%emt 0:00:00]} Nxe4 {[%emt 0:00:00]} 5. Nf3 {[%emt 0:00:00]} Be7 {[%emt 0:00:00]} 6. Qe2 {[%emt 0:00:00]} Nxc3 {[%emt 0:00:00]} 7. dxc3 {[%emt 0:00:00]} c5 {[%emt 0:00:00]} 8. Bf4 {[%emt 0:00:00]} Nc6 {[%emt 0:02:59]} 9. O-O-O {[%emt 0:00:00]} Be6 {[%emt 0:01:48]} 10. Qf2 {[%emt 0:00:00]} Qa5 {[%emt 0:06:40]} 11. a3 {[%emt 0:00:00]} b5 {[%emt 0:03:32]} 12. Bd2 {[%emt 0:05:56]} Qa4 {[%emt 0:04:41]} 13. Be3 {[%emt 0:04:40]} c4 {[%emt 0:13:27]} 14. Qg3 {[%emt 0:03:43]} O-O-O {[%emt 0:07:04]} 15. Nd4 {[%emt 0:02:16]} Nxd4 {[%emt 0:02:34]} 16. Bxd4 {[%emt 0:00:35]} Bf5 {[%emt 0:01:35]} 17. Qf2 {[%emt 0:00:35]} Bg5+ {[%emt 0:01:32]} 18. Kb1 {[%emt 0:00:08]} Bg6 {[%emt 0:00:48]} 19. Bxa7 {[%emt 0:00:27]} Be7 {[%emt 0:05:02]} 20. g3 {[%emt 0:03:57]} Kb7 {[%emt 0:05:41]} 21. Be3 {[%emt 0:02:44]} Bxa3 {[%emt 0:14:38]} 22. bxa3 {[%emt 0:01:57]} Qb3+ {[%emt 0:01:28]} 23. Kc1 {[%emt 0:00:30]} Qxa3+ {[%emt 0:01:45]} 24. Kd2 {[%emt 0:01:55]} d4 {[%emt 0:02:20]} 25. Bxd4 {[%emt 0:00:34]} Kc7 {[%emt 0:00:48]} 26. Ke1 {[%emt 0:01:28]} Qa5 {[%emt 0:03:53]} 27. Bg2 {[%emt 0:01:30]} Bh5 {[%emt 0:03:20]} 28. Bf3 {[%emt 0:00:10]} Rxd4 {[%emt 0:00:33]} 29. Qxd4 {[%emt 0:01:10]} Bxf3 {[%emt 0:00:06]} 30. Rf1 {[%emt 0:00:23]} Bxd1 {[%emt 0:00:27]} 31. Rxf7+ {[%emt 0:00:06]} Kc8 {[%emt 0:01:02]} 32. Qd7+ {[%emt 0:00:05]} Kb8 33. Qd6+ Ka8 {[%emt 0:00:06]} 34. Qc6+ {[%emt 0:00:01]} Kb8 {[%emt 0:00:02]} 35. Qb7# 1-0

[Event "GER-ch Youth-U12 2024"]
[Site "Willingen"]
[Date "2024.05.19"]
[Round "2"]
[White "Hoppe, Arthur"]
[Black "Noll, Raphael"]
[Result "1-0"]
[ECO "C42"]
[WhiteElo "1859"]
[BlackElo "1775"]
[Annotator "NA RC"]
[PlyCount "61"]
[EventDate "2022.06.05"]
[EventType "swiss"]
[EventRounds "9"]
[EventCountry "GER"]
[SourceTitle "playchess.com"]
[Source "ChessBase"]
[SourceQuality "1"]
[TimeControl "40/4500+30:900+30"]

1. e4 {[%emt 0:00:00]} e5 {[%emt 0:00:00]} 2. Nf3 {[%emt 0:00:00]} Nf6 {[%emt 0:00:00]} 3. Nxe5 {[%emt 0:00:00]} d6 {[%emt 0:00:00]} 4. Nf3 {[%emt 0:00:00]} Nxe4 {[%emt 0:00:00]} 5. d4 {[%emt 0:00:00]} d5 {[%emt 0:00:00]} 6. Bd3 {[%emt 0:00:00]} Bd6 {[%emt 0:00:00]} 7. O-O {[%emt 0:00:00]} O-O {[%emt 0:00:00]} 8. c4 {[%emt 0:00:00]} c6 {[%emt 0:00:00]} 9. Qc2 {[%emt 0:00:00]} Re8 {[%emt 0:00:00]} 10. Nc3 {[%emt 0:00:00]} Nxc3 {[%emt 0:00:00]} 11. Bxh7+ {[%emt 0:00:00]} Kh8 {[%emt 0:00:00]} 12. bxc3 {[%emt 0:00:00]} Bg4 {[%emt 0:00:00]} 13. Ng5 {[%emt 0:00:00]} Qd7 {[%emt 0:02:16]} 14. h3 {[%emt 0:00:00]} Bh5 {[%emt 0:07:53]} 15. Bf5 {[%emt 0:00:00]} Qe7 {[%emt 0:02:37]} 16. c5 {[%emt 0:06:19]} Bc7 {[%emt 0:01:21]} 17. Bd2 {[%emt 0:05:56]} g6 {[%emt 0:02:03]} 18. Rfe1 {[%emt 0:02:32]} Qf8 {[%emt 0:02:42]} 19. Rxe8 {[%emt 0:00:13]} Qxe8 {[%emt 0:00:12]} 20. Re1 {[%emt 0:00:04]} Qf8 {[%emt 0:01:16]} 21. Bd3 {[%emt 0:00:26]} f5 {[%emt 0:02:29]} 22. Ne6 {[%emt 0:02:55]} Qf7 {[%emt 0:01:46]} 23. Nxc7 {[%emt 0:00:22]} Qxc7 {[%emt 0:00:11]} 24. Re8+ {[%emt 0:00:04]} Kg7 {[%emt 0:01:06]} 25. Bg5 {[%emt 0:00:25]} Qa5 {[%emt 0:01:54]} 26. g4 {[%emt 0:00:21]} fxg4 {[%emt 0:00:34]} 27. Qe2 {[%emt 0:00:05]} Qc7 {[%emt 0:00:32]} 28. Re7+ {[%emt 0:00:06]} Qxe7 {[%emt 0:00:55]} 29. Qxe7+ {[%emt 0:00:04]} Kg8 {[%emt 0:00:04]} 30. Bf6 {[%emt 0:00:09]} gxh3 {[%emt 0:00:10]} 31. Qg7# {[%emt 0:00:03]} 1-0

[Event "GER-ch Youth-U12 2024"]
[Site "Willingen"]
[Date "2024.05.19"]
[Round "2"]
[White "Junge, Mattheo Gabriel"]
[Black "Levytskyi, Oleksandr"]
[Result "1-0"]
[ECO "C97"]
[WhiteElo "1817"]
[BlackElo "1467"]
[Annotator "NA RC"]
[PlyCount "45"]
[EventDate "2022.06.05"]
[EventType "swiss"]
[EventRounds "9"]
[EventCountry "GER"]
[SourceTitle "playchess.com"]
[Source "ChessBase"]
[SourceQuality "1"]
[TimeControl "40/4500+30:900+30"]

1. e4 {[%emt 0:00:00]} e5 {[%emt 0:00:00]} 2. Nf3 {[%emt 0:00:00]} Nc6 {[%emt 0:00:00]} 3. Bb5 {[%emt 0:00:00]} a6 {[%emt 0:00:00]} 4. Ba4 {[%emt 0:00:00]} Nf6 {[%emt 0:00:00]} 5. O-O {[%emt 0:00:00]} b5 {[%emt 0:00:00]} 6. Bb3 {[%emt 0:00:00]} Be7 {[%emt 0:00:00]} 7. Re1 {[%emt 0:00:00]} d6 {[%emt 0:00:00]} 8. h3 {[%emt 0:00:00]} Na5 {[%emt 0:00:00]} 9. c3 {[%emt 0:00:00]} O-O {[%emt 0:00:00]} 10. Bc2 {[%emt 0:00:00]} c5 {[%emt 0:00:00]} 11. d4 {[%emt 0:00:00]} Qc7 {[%emt 0:00:00]} 12. d5 {[%emt 0:08:03]} Re8 {[%emt 0:00:20]} 13. Nbd2 {[%emt 0:00:00]} Bf8 {[%emt 0:01:05]} 14. Nf1 {[%emt 0:00:00]} g6 {[%emt 0:01:05]} 15. Ng3 {[%emt 0:00:00]} Bg7 {[%emt 0:00:03]} 16. b3 {[%emt 0:00:00]} Rf8 {[%emt 0:08:33]} 17. Bd2 {[%emt 0:00:00]} Ne8 {[%emt 0:03:06]} 18. Qc1 {[%emt 0:00:00]} f5 {[%emt 0:06:24]} 19. exf5 {[%emt 0:00:00]} gxf5 {[%emt 0:00:34]} 20. Bh6 {[%emt 0:00:00]} e4 {[%emt 0:00:50]} 21. Nh4 {[%emt 0:08:42]} Qf7 {[%emt 0:05:48]} 22. Qg5 {[%emt 0:10:11]} Qxd5 {[%emt 0:02:20]} 23. Bxe4 {[%emt 0:00:45]} 1-0

[Event "GER-ch Youth-U12 2024"]
[Site "Willingen"]
[Date "2024.05.19"]
[Round "2"]
[White "Peglau, Paul David"]
[Black "Hagn, Tobias"]
[Result "1-0"]
[ECO "D40"]
[WhiteElo "1806"]
[BlackElo "1631"]
[Annotator "NA RC"]
[PlyCount "129"]
[EventDate "2022.06.05"]
[EventType "swiss"]
[EventRounds "9"]
[EventCountry "GER"]
[SourceTitle "playchess.com"]
[Source "ChessBase"]
[SourceQuality "1"]
[TimeControl "40/4500+30:900+30"]

1. d4 {[%emt 0:00:00]} d5 {[%emt 0:00:00]} 2. Nf3 {[%emt 0:00:00]} c5 {[%emt 0:00:00]} 3. c4 {[%emt 0:00:00]} e6 {[%emt 0:00:00]} 4. e3 {[%emt 0:00:00]} Nc6 {[%emt 0:00:00]} 5. Nc3 {[%emt 0:00:00]} Nf6 {[%emt 0:00:00]} 6. a3 {[%emt 0:00:00]} Be7 {[%emt 0:00:00]} 7. dxc5 {[%emt 0:00:00]} Bxc5 {[%emt 0:00:00]} 8. b4 {[%emt 0:00:00]} Bd6 {[%emt 0:00:00]} 9. c5 {[%emt 0:00:00]} Bc7 {[%emt 0:00:00]} 10. Nd4 {[%emt 0:08:19]} e5 {[%emt 0:00:00]} 11. Nb3 {[%emt 0:05:53]} O-O {[%emt 0:03:33]} 12. Bb2 {[%emt 0:01:11]} d4 {[%emt 0:04:46]} 13. Nb5 {[%emt 0:04:11]} dxe3 {[%emt 0:04:49]} 14. fxe3 {[%emt 0:01:53]} Bb8 {[%emt 0:07:08]} 15. Nc3 {[%emt 0:15:20]} Be6 {[%emt 0:06:06]} 16. Nd2 {[%emt 0:02:57]} Ng4 {[%emt 0:03:44]} 17. Nc4 {[%emt 0:10:44]} Qf6 {[%emt 0:08:50]} 18. Ne4 {[%emt 0:06:12]} Qf5 {[%emt 0:09:47]} 19. Qf3 {[%emt 0:03:25]} Qg6 {[%emt 0:04:16]} 20. h3 {[%emt 0:05:24]} Nh6 {[%emt 0:00:59]} 21. b5 {[%emt 0:01:26]} Ne7 {[%emt 0:03:23]} 22. Ned6 {[%emt 0:14:29]} Bd5 {[%emt 0:04:41]} 23. Nxe5 {[%emt 0:03:21]} Bxf3 {[%emt 0:02:07]} 24. Nxg6 {[%emt 0:00:08]} Nxg6 {[%emt 0:00:11]} 25. gxf3 {[%emt 0:00:12]} Bxd6 {[%emt 0:00:28]} 26. cxd6 {[%emt 0:00:01]} Nf5 {[%emt 0:00:38]} 27. Kf2 {[%emt 0:00:56]} Nxd6 {[%emt 0:00:55]} 28. Be2 {[%emt 0:00:36]} Rfe8 {[%emt 0:01:23]} 29. Rhd1 {[%emt 0:00:53]} Nf5 {[%emt 0:01:35]} 30. e4 {[%emt 0:00:11]} Nf4 {[%emt 0:01:47]} 31. Bf1 {[%emt 0:00:42]} Ne7 {[%emt 0:03:20]} 32. Rd7 {[%emt 0:01:05]} Rab8 {[%emt 0:00:25]} 33. Rc1 {[%emt 0:00:24]} Ne6 {[%emt 0:01:05]} 34. Bc4 {[%emt 0:01:17]} Kf8 {[%emt 0:02:41]} 35. Bxe6 {[%emt 0:00:18]} fxe6 {[%emt 0:00:37]} 36. Rcc7 {[%emt 0:00:19]} a6 {[%emt 0:03:50]} 37. b6 {[%emt 0:01:05]} Rbd8 {[%emt 0:01:04]} 38. Rxb7 {[%emt 0:00:36]} Rxd7 {[%emt 0:01:34]} 39. Rxd7 {[%emt 0:00:02]} Rb8 {[%emt 0:00:19]} 40. Bxg7+ {[%emt 0:00:49]} Ke8 {[%emt 0:03:15]} 41. Rd6 {[%emt 0:15:47]} Nc8 {[%emt 0:15:10]} 42. Rxe6+ {[%emt 0:00:00]} Kf7 {[%emt 0:00:00]} 43. Be5 {[%emt 0:00:00]} Kxe6 {[%emt 0:00:00]} 44. Bxb8 {[%emt 0:00:00]} Nxb6 {[%emt 0:00:00]} 45. Bf4 {[%emt 0:00:00]} Nc4 {[%emt 0:00:00]} 46. Bc1 {[%emt 0:00:00]} Ne5 {[%emt 0:00:00]} 47. Ke3 {[%emt 0:00:00]} Nc6 {[%emt 0:00:00]} 48. f4 {[%emt 0:00:00]} Na5 {[%emt 0:00:00]} 49. f5+ {[%emt 0:00:00]} Kd6 {[%emt 0:00:00]} 50. Kf4 {[%emt 0:00:00]} Nc4 {[%emt 0:00:00]} 51. Kg5 {[%emt 0:00:00]} Ke7 {[%emt 0:00:00]} 52. a4 {[%emt 0:00:00]} Nb6 {[%emt 0:00:00]} 53. Ba3+ {[%emt 0:00:00]} Kf7 {[%emt 0:00:00]} 54. e5 {[%emt 0:00:00]} Nc8 {[%emt 0:00:00]} 55. e6+ {[%emt 0:00:00]} Ke8 {[%emt 0:00:00]} 56. f6 {[%emt 0:00:00]} Nb6 {[%emt 0:00:00]} 57. f7+ {[%emt 0:00:00]} Kd8 {[%emt 0:00:00]} 58. f8=Q+ {[%emt 0:00:00]} Kc7 {[%emt 0:00:00]} 59. Qd6+ {[%emt 0:00:00]} Kb7 {[%emt 0:00:00]} 60. e7 {[%emt 0:00:00]} Nc8 {[%emt 0:00:00]} 61. e8=Q {[%emt 0:00:00]} Nxd6 {[%emt 0:00:00]} 62. Bxd6 {[%emt 0:00:00]} Kb6 {[%emt 0:00:00]} 63. Qc8 {[%emt 0:00:00]} Ka5 {[%emt 0:00:00]} 64. Qc5+ {[%emt 0:00:00]} Kxa4 {[%emt 0:00:00]} 65. Qb4# {[%emt 0:00:00]} 1-0

[Event "GER-ch Youth-U12 2024"]
[Site "Willingen"]
[Date "2024.05.19"]
[Round "2"]
[White "Meijers, Janis"]
[Black "Li, Yunqi"]
[Result "0-1"]
[ECO "E32"]
[WhiteElo "1787"]
[BlackElo "1940"]
[Annotator "RC"]
[PlyCount "132"]
[EventDate "2022.06.05"]
[EventType "swiss"]
[EventRounds "9"]
[EventCountry "GER"]
[SourceTitle "playchess.com"]
[Source "ChessBase"]
[SourceQuality "1"]
[TimeControl "40/4500+30:900+30"]

1. d4 {[%emt 0:00:00]} Nf6 {[%emt 0:00:00]} 2. c4 {[%emt 0:00:00]} e6 {[%emt 0:00:00]} 3. Nc3 {[%emt 0:00:00]} Bb4 {[%emt 0:00:00]} 4. Qc2 {[%emt 0:00:00]} b6 {[%emt 0:00:00]} 5. Nf3 {[%emt 0:00:00]} Bb7 {[%emt 0:00:00]} 6. a3 {[%emt 0:00:00]} Bxc3+ {[%emt 0:00:00]} 7. Qxc3 {[%emt 0:00:00]} Ne4 {[%emt 0:00:00]} 8. Qc2 {[%emt 0:00:00]} f5 {[%emt 0:00:00]} 9. e3 {[%emt 0:00:00]} O-O {[%emt 0:00:00]} 10. Be2 {[%emt 0:00:00]} d6 {[%emt 0:00:00]} 11. b4 {[%emt 0:00:00]} Nd7 {[%emt 0:00:00]} 12. Bb2 {[%emt 0:00:00]} Qe7 {[%emt 0:00:00]} 13. O-O {[%emt 0:00:00]} Rae8 {[%emt 0:00:00]} 14. d5 {[%emt 0:00:00]} e5 {[%emt 0:00:00]} 15. Nd2 {[%emt 0:00:00]} Nxd2 {[%emt 0:00:46]} 16. Qxd2 {[%emt 0:00:00]} Rf6 {[%emt 0:04:07]} 17. Rae1 {[%emt 0:03:40]} Rh6 {[%emt 0:02:07]} 18. g3 {[%emt 0:05:34]} Rf8 {[%emt 0:04:05]} 19. f4 {[%emt 0:02:37]} c6 {[%emt 0:10:58]} 20. Bf3 {[%emt 0:03:53]} e4 {[%emt 0:04:38]} 21. Be2 {[%emt 0:00:28]} cxd5 {[%emt 0:00:48]} 22. Rc1 {[%emt 0:03:14]} Nf6 {[%emt 0:02:54]} 23. Bd4 {[%emt 0:02:32]} dxc4 {[%emt 0:02:08]} 24. Bxc4+ {[%emt 0:00:52]} d5 {[%emt 0:00:31]} 25. Bxf6 {[%emt 0:00:41]} Rhxf6 {[%emt 0:00:23]} 26. Bxd5+ {[%emt 0:00:07]} Bxd5 {[%emt 0:00:17]} 27. Qxd5+ {[%emt 0:00:06]} Kh8 {[%emt 0:00:09]} 28. Rfd1 {[%emt 0:00:28]} R6f7 {[%emt 0:01:46]} 29. a4 {[%emt 0:00:47]} Qxb4 {[%emt 0:02:12]} 30. Rc6 {[%emt 0:03:29]} Qxa4 {[%emt 0:06:29]} 31. Rd6 {[%emt 0:02:58]} h6 {[%emt 0:01:44]} 32. Qe5 {[%emt 0:13:48]} Kh7 {[%emt 0:00:37]} 33. Qe6 {[%emt 0:06:08]} Rf6 {[%emt 0:02:14]} 34. Qe5 {[%emt 0:01:14]} Rxd6 {[%emt 0:01:17]} 35. Rxd6 {[%emt 0:02:06]} Rf7 {[%emt 0:02:58]} 36. Qd5 {[%emt 0:16:43]} Rf6 {[%emt 0:06:45]} 37. Rxf6 {[%emt 0:01:28]} Qa1+ {[%emt 0:00:06]} 38. Kg2 {[%emt 0:00:24]} Qxf6 {[%emt 0:00:07]} 39. Qb7 {[%emt 0:00:27]} a5 {[%emt 0:00:43]} 40. Qd7 {[%emt 0:00:55]} Qf8 {[%emt 0:01:48]} 41. Kf2 {[%emt 0:15:54]} Qc5 {[%emt 0:15:11]} 42. Qa4 {[%emt 0:00:56]} Qd5 {[%emt 0:00:53]} 43. Qa3 {[%emt 0:01:51]} Qd2+ {[%emt 0:00:50]} 44. Kg1 {[%emt 0:00:33]} Qb4 {[%emt 0:00:29]} 45. Qc1 {[%emt 0:02:19]} a4 {[%emt 0:00:16]} 46. Qc8 {[%emt 0:01:08]} Qc5 {[%emt 0:00:10]} 47. Qe6 {[%emt 0:01:11]} a3 {[%emt 0:00:26]} 48. Kf2 {[%emt 0:00:12]} Qa5 {[%emt 0:00:12]} 49. Qa2 {[%emt 0:00:25]} Qc5 {[%emt 0:01:00]} 50. Qe6 {[%emt 0:01:05]} b5 {[%emt 0:00:14]} 51. g4 {[%emt 0:01:17]} fxg4 {[%emt 0:01:35]} 52. Qxe4+ {[%emt 0:06:25]} Kg8 {[%emt 0:00:32]} 53. Qe8+ {[%emt 0:01:22]} Qf8 {[%emt 0:00:18]} 54. Qxb5 {[%emt 0:00:43]} Qa8 {[%emt 0:00:36]} 55. Qb3+ {[%emt 0:01:02]} Kh8 {[%emt 0:00:08]} 56. Qa2 {[%emt 0:01:30]} Qf3+ {[%emt 0:00:08]} 57. Kg1 {[%emt 0:00:12]} Qxe3+ {[%emt 0:00:19]} 58. Kg2 {[%emt 0:00:10]} Qe4+ {[%emt 0:01:49]} 59. Kg1 {[%emt 0:02:40]} Qd4+ {[%emt 0:00:22]} 60. Kh1 {[%emt 0:00:25]} Qxf4 {[%emt 0:00:35]} 61. Qb1 {[%emt 0:01:00]} a2 {[%emt 0:00:43]} 62. Qe1 {[%emt 0:01:37]} Qf5 {[%emt 0:00:42]} 63. Kg2 {[%emt 0:00:28]} Qb1 {[%emt 0:00:12]} 64. Qe8+ {[%emt 0:00:29]} Kh7 {[%emt 0:00:08]} 65. h4 {[%emt 0:00:29]} a1=Q {[%emt 0:00:09]} 66. h5 {[%emt 0:00:25]} Qg1# {[%emt 0:00:05]} 0-1

[Event "GER-ch Youth-U12 2024"]
[Site "Willingen"]
[Date "2024.05.19"]
[Round "2"]
[White "Fels, Mattis"]
[Black "Draude, Theo"]
[Result "1-0"]
[ECO "B13"]
[WhiteElo "1759"]
[BlackElo "1731"]
[Annotator "NA RC"]
[PlyCount "75"]
[EventDate "2022.06.05"]
[EventType "swiss"]
[EventRounds "9"]
[EventCountry "GER"]
[SourceTitle "playchess.com"]
[Source "ChessBase"]
[SourceQuality "1"]
[TimeControl "40/4500+30:900+30"]

1. d4 {[%emt 0:00:00]} Nf6 {[%emt 0:00:00]} 2. Nc3 {[%emt 0:00:09]} d5 {[%emt 0:00:00]} 3. Bf4 {[%emt 0:00:07]} c5 {[%emt 0:00:00]} 4. e3 {[%emt 0:00:00]} cxd4 {[%emt 0:00:00]} 5. exd4 {[%emt 0:00:00]} a6 {[%emt 0:00:00]} 6. Nf3 {[%emt 0:00:00]} Nc6 {[%emt 0:00:00]} 7. Ne5 {[%emt 0:00:00]} Bd7 {[%emt 0:00:00]} 8. g3 {[%emt 0:00:00]} e6 {[%emt 0:00:00]} 9. Bg2 {[%emt 0:00:00]} Nxe5 {[%emt 0:00:00]} 10. dxe5 {[%emt 0:00:00]} Ng8 {[%emt 0:00:00]} 11. O-O {[%emt 0:00:00]} Ne7 {[%emt 0:00:00]} 12. Ne2 {[%emt 0:00:00]} Ng6 {[%emt 0:00:00]} 13. Rc1 {[%emt 0:00:00]} Bb5 {[%emt 0:00:00]} 14. Re1 {[%emt 0:00:00]} Bc5 {[%emt 0:00:00]} 15. Nd4 {[%emt 0:04:51]} Nxf4 {[%emt 0:00:00]} 16. gxf4 {[%emt 0:00:11]} Qh4 {[%emt 0:00:00]} 17. Qd2 {[%emt 0:01:25]} Bxd4 {[%emt 0:00:00]} 18. Qxd4 {[%emt 0:00:09]} g5 {[%emt 0:00:00]} 19. c4 {[%emt 0:04:04]} Bxc4 {[%emt 0:00:00]} 20. b3 {[%emt 0:00:10]} Bb5 {[%emt 0:00:00]} 21. Rc7 {[%emt 0:00:33]} Bc6 {[%emt 0:00:00]} 22. Qc5 {[%emt 0:00:42]} gxf4 {[%emt 0:00:00]} 23. Rxc6 {[%emt 0:00:31]} bxc6 {[%emt 0:01:00]} 24. Qxc6+ {[%emt 0:00:06]} Ke7 {[%emt 0:00:19]} 25. Qd6+ {[%emt 0:00:12]} Ke8 {[%emt 0:00:08]} 26. Qc6+ {[%emt 0:00:04]} Ke7 {[%emt 0:00:04]} 27. Qb7+ {[%emt 0:00:06]} Kf8 {[%emt 0:01:06]} 28. Qxa8+ {[%emt 0:00:07]} Kg7 {[%emt 0:00:07]} 29. Qxa6 {[%emt 0:00:18]} Rg8 {[%emt 0:00:45]} 30. Qe2 {[%emt 0:01:54]} Kh8 {[%emt 0:01:53]} 31. Kh1 {[%emt 0:00:42]} Qg5 {[%emt 0:02:25]} 32. Qf3 {[%emt 0:02:24]} Qf5 {[%emt 0:01:15]} 33. a4 {[%emt 0:02:24]} Rg5 {[%emt 0:03:00]} 34. Bh3 {[%emt 0:03:16]} Qc2 {[%emt 0:01:24]} 35. Qxf4 {[%emt 0:00:17]} Rg7 {[%emt 0:00:40]} 36. Qf6 {[%emt 0:01:03]} Qd3 {[%emt 0:02:12]} 37. Rg1 {[%emt 0:01:01]} Qe4+ {[%emt 0:00:41]} 38. f3 {[%emt 0:00:20]} 1-0